[Event "Live Chess"]
[Site "Chess.com"]
[Date "2024.06.02"]
[Round "-"]
[White "Pandreq"]
[Black "upoe610"]
[Result "0-1"]
[WhiteElo "1220"]
[BlackElo "2134"]
[TimeControl "300"]
[EndTime "3:21:36 PDT"]
[Termination "upoe610 won by resignation"]

1. d4 {[%clk 0:04:58.1]} 1... Nf6 {[%clk 0:04:58.3]} 2. c4 {[%clk 0:04:57.7]}
2... c5 {[%clk 0:04:57.5]} 3. d5 {[%clk 0:04:56.6]} 3... b5 {[%clk 0:04:57]} 4.
b3 {[%clk 0:04:55.4]} 4... b4 {[%clk 0:04:55.4]} 5. a3 {[%clk 0:04:52.5]} 5...
bxa3 {[%clk 0:04:48.4]} 6. Bxa3 {[%clk 0:04:50.7]} 6... d6 {[%clk 0:04:47.7]} 7.
Nf3 {[%clk 0:04:48.1]} 7... g6 {[%clk 0:04:47.6]} 8. Bb2 {[%clk 0:04:46.1]} 8...
Bg7 {[%clk 0:04:47.5]} 9. Qc1 {[%clk 0:04:44.7]} 9... O-O {[%clk 0:04:46.9]} 10.
Nbd2 {[%clk 0:04:41.9]} 10... a5 {[%clk 0:04:44.5]} 11. e4 {[%clk 0:04:39.3]}
11... e5 {[%clk 0:04:43.5]} 12. Be2 {[%clk 0:04:36.1]} 12... Ra7 {[%clk
0:04:42.5]} 13. O-O {[%clk 0:04:34.1]} 13... Re7 {[%clk 0:04:40.7]} 14. Bc3
{[%clk 0:04:23.5]} 14... Nh5 {[%clk 0:04:30.4]} 15. Bxa5 {[%clk 0:04:19.6]}
15... Qd7 {[%clk 0:04:29.4]} 16. Bc3 {[%clk 0:04:15.9]} 16... Nf4 {[%clk
0:04:28.2]} 17. Qd1 {[%clk 0:04:10.3]} 17... Qg4 {[%clk 0:04:26.2]} 18. Ne1
{[%clk 0:03:54.7]} 18... Nxe2+ {[%clk 0:04:20.9]} 19. Kh1 {[%clk 0:03:45.3]}
19... Nxc3 {[%clk 0:04:20.1]} 20. Qxg4 {[%clk 0:03:43.4]} 20... Bxg4 {[%clk
0:04:20]} 21. f3 {[%clk 0:03:38]} 21... Bd7 {[%clk 0:04:17.4]} 22. Nd3 {[%clk
0:03:33.6]} 22... Ne2 {[%clk 0:04:16.2]} 23. Rfe1 {[%clk 0:03:26.4]} 23... Nd4
{[%clk 0:04:15.1]} 24. b4 {[%clk 0:03:25.3]} 24... Nc2 {[%clk 0:04:13.9]} 0-1

[Event "Live Chess"]
[Site "Chess.com"]
[Date "2024.06.02"]
[Round "-"]
[White "SavagePawn7"]
[Black "Larchikov"]
[Result "0-1"]
[WhiteElo "653"]
[BlackElo "2058"]
[TimeControl "300"]
[EndTime "3:22:07 PDT"]
[Termination "Larchikov won by resignation"]

1. e4 {[%clk 0:04:56.6]} 1... c5 {[%clk 0:04:59.3]} 2. d4 {[%clk 0:04:55.2]}
2... cxd4 {[%clk 0:04:58.2]} 3. c3 {[%clk 0:04:54.1]} 3... e5 {[%clk 0:04:56.4]}
4. cxd4 {[%clk 0:04:52.5]} 4... exd4 {[%clk 0:04:56.3]} 5. Nf3 {[%clk 0:04:51]}
5... Nc6 {[%clk 0:04:55.3]} 6. Bb5 {[%clk 0:04:48.5]} 6... Nf6 {[%clk
0:04:52.4]} 7. Bxc6 {[%clk 0:04:42.5]} 7... dxc6 {[%clk 0:04:52.3]} 8. Bg5
{[%clk 0:04:29.8]} 8... Be7 {[%clk 0:04:46.9]} 9. Bxf6 {[%clk 0:04:21.5]} 9...
Bxf6 {[%clk 0:04:46.8]} 10. O-O {[%clk 0:04:17.5]} 10... Bg4 {[%clk 0:04:41.8]}
11. h3 {[%clk 0:04:12]} 11... Bxf3 {[%clk 0:04:39.6]} 12. Qxf3 {[%clk
0:04:10.7]} 12... O-O {[%clk 0:04:39.3]} 13. Nd2 {[%clk 0:04:02.9]} 13... Re8
{[%clk 0:04:35.1]} 14. Rad1 {[%clk 0:03:44.6]} 14... Qe7 {[%clk 0:04:29.7]} 15.
Rfe1 {[%clk 0:03:26.7]} 15... Rad8 {[%clk 0:04:23.2]} 16. Rc1 {[%clk 0:03:07]}
16... Qb4 {[%clk 0:04:15.5]} 17. Nb3 {[%clk 0:02:51.9]} 17... d3 {[%clk
0:04:05.4]} 18. Red1 {[%clk 0:02:44.7]} 18... Bxb2 {[%clk 0:04:01]} 19. Rb1
{[%clk 0:02:33.1]} 19... Bf6 {[%clk 0:03:55.6]} 20. Rxd3 {[%clk 0:02:23.6]}
20... Rxd3 {[%clk 0:03:50.6]} 21. Qxd3 {[%clk 0:02:22.1]} 21... Rxe4 {[%clk
0:03:39.6]} 22. Nd2 {[%clk 0:02:06.8]} 22... Rd4 {[%clk 0:03:24]} 23. Rxb4
{[%clk 0:01:50.8]} 23... Rxd3 {[%clk 0:03:22.6]} 24. Nf3 {[%clk 0:01:45.2]}
24... b6 {[%clk 0:03:16.5]} 25. Re4 {[%clk 0:01:36.1]} 25... Kf8 {[%clk
0:03:12.8]} 26. Ne5 {[%clk 0:01:23.3]} 26... Bxe5 {[%clk 0:03:07.8]} 27. Rxe5
{[%clk 0:01:21.8]} 27... c5 {[%clk 0:03:07.3]} 28. Re3 {[%clk 0:00:56]} 28...
Rxe3 {[%clk 0:03:05.7]} 29. fxe3 {[%clk 0:00:54.9]} 29... Ke7 {[%clk 0:03:05.3]}
30. Kf2 {[%clk 0:00:50.1]} 30... Ke6 {[%clk 0:03:05.2]} 0-1

[Event "Live Chess"]
[Site "Chess.com"]
[Date "2024.06.02"]
[Round "-"]
[White "Purple1szed"]
[Black "chess5013"]
[Result "1/2-1/2"]
[WhiteElo "2060"]
[BlackElo "1310"]
[TimeControl "300"]
[EndTime "3:22:36 PDT"]
[Termination "Game drawn by repetition"]

1. e4 {[%clk 0:04:59.2]} 1... c6 {[%clk 0:04:58.5]} 2. d4 {[%clk 0:04:58.4]}
2... d5 {[%clk 0:04:57.9]} 3. e5 {[%clk 0:04:58.3]} 3... Bf5 {[%clk 0:04:56.4]}
4. h4 {[%clk 0:04:58]} 4... h5 {[%clk 0:04:54.3]} 5. Bd3 {[%clk 0:04:57.6]} 5...
Bxd3 {[%clk 0:04:52]} 6. Qxd3 {[%clk 0:04:57.5]} 6... e6 {[%clk 0:04:50.4]} 7.
Bg5 {[%clk 0:04:57.1]} 7... Be7 {[%clk 0:04:47.9]} 8. Nf3 {[%clk 0:04:55.7]}
8... Nd7 {[%clk 0:04:42.5]} 9. Nbd2 {[%clk 0:04:54.2]} 9... Bxg5 {[%clk
0:04:32.5]} 10. Nxg5 {[%clk 0:04:54.1]} 10... Qe7 {[%clk 0:04:26]} 11. c4 {[%clk
0:04:52.5]} 11... O-O-O {[%clk 0:04:14]} 12. cxd5 {[%clk 0:04:49.9]} 12... exd5
{[%clk 0:04:10.1]} 13. O-O {[%clk 0:04:48.1]} 13... f6 {[%clk 0:04:03.7]} 14.
exf6 {[%clk 0:04:37.4]} 14... gxf6 {[%clk 0:04:02]} 15. Rae1 {[%clk 0:04:35.9]}
15... Qg7 {[%clk 0:03:53.1]} 16. Ne6 {[%clk 0:04:35]} 16... Qg4 {[%clk
0:03:44.2]} 17. Nxd8 {[%clk 0:04:29.4]} 17... Kxd8 {[%clk 0:03:43.4]} 18. Nf3
{[%clk 0:04:22.9]} 18... Ne7 {[%clk 0:03:40.3]} 19. Qe2 {[%clk 0:04:07]} 19...
Rg8 {[%clk 0:03:35.8]} 20. g3 {[%clk 0:04:02.9]} 20... Nf5 {[%clk 0:03:32.2]}
21. Nh2 {[%clk 0:03:53.3]} 21... Qxh4 {[%clk 0:03:22.8]} 22. Kh1 {[%clk
0:03:27.7]} 22... Rxg3 {[%clk 0:03:13.1]} 23. fxg3 {[%clk 0:03:27.6]} 23...
Nxg3+ {[%clk 0:03:11.9]} 24. Kg2 {[%clk 0:03:25.7]} 24... Nxe2 {[%clk
0:03:10.7]} 25. Rxe2 {[%clk 0:03:25.6]} 25... Qg5+ {[%clk 0:03:08.5]} 26. Kf2
{[%clk 0:03:19]} 26... Qf4+ {[%clk 0:03:04.1]} 27. Nf3 {[%clk 0:03:18.4]} 27...
h4 {[%clk 0:02:51.5]} 28. Rh1 {[%clk 0:03:15.9]} 28... Qg3+ {[%clk 0:02:49.3]}
29. Ke3 {[%clk 0:03:08.4]} 29... h3 {[%clk 0:02:29.3]} 30. Reh2 {[%clk
0:03:06.7]} 30... c5 {[%clk 0:02:12.3]} 31. Rxh3 {[%clk 0:03:00.5]} 31... cxd4+
{[%clk 0:02:10.5]} 32. Kxd4 {[%clk 0:02:26.6]} 32... Qf4+ {[%clk 0:02:04.9]} 33.
Kd3 {[%clk 0:02:03.3]} 33... Qe4+ {[%clk 0:02:01.4]} 34. Kd2 {[%clk 0:02:01]}
34... Qf4+ {[%clk 0:01:56.2]} 35. Ke2 {[%clk 0:01:55.8]} 35... Qe4+ {[%clk
0:01:52.7]} 36. Kf2 {[%clk 0:01:54.6]} 36... Qc2+ {[%clk 0:01:49]} 37. Kg3
{[%clk 0:01:53.8]} 37... Qg6+ {[%clk 0:01:46.5]} 38. Kf4 {[%clk 0:01:44.7]}
38... Qe4+ {[%clk 0:01:33.5]} 39. Kg3 {[%clk 0:01:43.7]} 39... Ne5 {[%clk
0:01:26.6]} 40. Rh8+ {[%clk 0:01:38.9]} 40... Kc7 {[%clk 0:01:23.4]} 41. R1h7+
{[%clk 0:01:37.4]} 41... Kb6 {[%clk 0:01:22.1]} 42. Nxe5 {[%clk 0:01:34.1]}
42... Qxe5+ {[%clk 0:01:19.9]} 43. Kf2 {[%clk 0:01:32.5]} 43... Qf4+ {[%clk
0:01:18.1]} 44. Ke2 {[%clk 0:01:31.6]} 44... Qe4+ {[%clk 0:01:16.4]} 45. Kd2
{[%clk 0:01:31.2]} 45... Qd4+ {[%clk 0:01:15]} 46. Kc2 {[%clk 0:01:30.8]} 46...
Qe4+ {[%clk 0:01:13.5]} 47. Kc3 {[%clk 0:01:24.8]} 47... Qc4+ {[%clk 0:01:11.8]}
48. Kd2 {[%clk 0:01:23]} 48... Qd4+ {[%clk 0:01:09.6]} 49. Kc2 {[%clk
0:01:22.1]} 49... Qc4+ {[%clk 0:01:07.3]} 50. Kb1 {[%clk 0:01:17.9]} 50... Qd3+
{[%clk 0:01:04]} 51. Kc1 {[%clk 0:01:17.1]} 51... Qe3+ {[%clk 0:01:02.2]} 52.
Kd1 {[%clk 0:01:15.6]} 52... Qd3+ {[%clk 0:00:51.4]} 53. Kc1 {[%clk 0:01:14.2]}
53... Qe3+ {[%clk 0:00:49.6]} 54. Kd1 {[%clk 0:01:13]} 54... Qd3+ {[%clk
0:00:48.6]} 55. Kc1 {[%clk 0:01:12.9]} 1/2-1/2

[Event "Live Chess"]
[Site "Chess.com"]
[Date "2024.06.02"]
[Round "-"]
[White "Brooms1989"]
[Black "Frankie_Badacsonyi"]
[Result "0-1"]
[WhiteElo "1224"]
[BlackElo "2374"]
[TimeControl "300"]
[EndTime "3:22:40 PDT"]
[Termination "Frankie_Badacsonyi won by resignation"]

1. e4 {[%clk 0:04:55.9]} 1... c6 {[%clk 0:04:59.3]} 2. Nf3 {[%clk 0:04:53.5]}
2... d5 {[%clk 0:04:59.2]} 3. exd5 {[%clk 0:04:51.6]} 3... cxd5 {[%clk
0:04:59.1]} 4. Ne5 {[%clk 0:04:50.9]} 4... Nc6 {[%clk 0:04:57.9]} 5. d4 {[%clk
0:04:49]} 5... Nf6 {[%clk 0:04:56]} 6. c3 {[%clk 0:04:37.5]} 6... e6 {[%clk
0:04:52.8]} 7. Bd3 {[%clk 0:04:34.1]} 7... Bd6 {[%clk 0:04:50.3]} 8. Nxc6 {[%clk
0:04:28.1]} 8... bxc6 {[%clk 0:04:50.2]} 9. O-O {[%clk 0:04:23.9]} 9... h6
{[%clk 0:04:49.5]} 10. Nd2 {[%clk 0:04:20.7]} 10... O-O {[%clk 0:04:48.8]} 11.
Nf3 {[%clk 0:04:19.4]} 11... a5 {[%clk 0:04:48.2]} 12. Re1 {[%clk 0:04:11.9]}
12... Ba6 {[%clk 0:04:46.8]} 13. Bxa6 {[%clk 0:04:09.5]} 13... Rxa6 {[%clk
0:04:46.7]} 14. Ne5 {[%clk 0:04:08.8]} 14... Qc7 {[%clk 0:04:44.5]} 15. Bf4
{[%clk 0:04:05.2]} 15... Raa8 {[%clk 0:04:42]} 16. Qf3 {[%clk 0:03:58]} 16... c5
{[%clk 0:04:36.3]} 17. Qg3 {[%clk 0:03:54.5]} 17... Nh5 {[%clk 0:04:34.2]} 18.
Qg4 {[%clk 0:03:51.7]} 18... Nxf4 {[%clk 0:04:32.3]} 19. Qxf4 {[%clk 0:03:50.5]}
19... Bxe5 {[%clk 0:04:29.5]} 20. Qxe5 {[%clk 0:03:46.5]} 20... Qxe5 {[%clk
0:04:28.5]} 21. dxe5 {[%clk 0:03:43.1]} 21... Rab8 {[%clk 0:04:27.8]} 22. b3
{[%clk 0:03:41.3]} 22... Rfc8 {[%clk 0:04:22.2]} 23. Rac1 {[%clk 0:03:32.5]}
23... c4 {[%clk 0:04:21.5]} 24. bxc4 {[%clk 0:03:26.4]} 24... Rxc4 {[%clk
0:04:21.4]} 25. Re3 {[%clk 0:03:22.2]} 25... Rb2 {[%clk 0:04:19.4]} 26. Kf1
{[%clk 0:03:13.9]} 26... Rxa2 {[%clk 0:04:17.8]} 27. Re2 {[%clk 0:03:13.5]}
27... Rxe2 {[%clk 0:04:16.1]} 28. Kxe2 {[%clk 0:03:13.1]} 28... d4 {[%clk
0:03:54.7]} 29. Kd3 {[%clk 0:03:08.9]} 29... Rxc3+ {[%clk 0:03:53.2]} 30. Rxc3
{[%clk 0:03:06.5]} 30... dxc3 {[%clk 0:03:53.1]} 31. Kxc3 {[%clk 0:03:05.5]}
31... Kh7 {[%clk 0:03:52.6]} 32. Kb3 {[%clk 0:02:58]} 32... Kg6 {[%clk
0:03:52.1]} 33. f4 {[%clk 0:02:53.8]} 33... Kf5 {[%clk 0:03:51.5]} 34. g3 {[%clk
0:02:53]} 34... Kg4 {[%clk 0:03:50.8]} 35. Ka4 {[%clk 0:02:52.2]} 35... Kh3
{[%clk 0:03:50.3]} 36. Kxa5 {[%clk 0:02:51.2]} 36... Kxh2 {[%clk 0:03:49.7]} 0-1

[Event "Live Chess"]
[Site "Chess.com"]
[Date "2024.06.02"]
[Round "-"]
[White "Kyrylo7770"]
[Black "MagnersCarlsberg2870"]
[Result "1-0"]
[WhiteElo "1626"]
[BlackElo "1768"]
[TimeControl "300"]
[EndTime "3:23:05 PDT"]
[Termination "Kyrylo7770 won by resignation"]

1. d4 {[%clk 0:04:59.1]} 1... Nf6 {[%clk 0:04:57.7]} 2. Nf3 {[%clk 0:04:58.3]}
2... b6 {[%clk 0:04:56.1]} 3. Bg5 {[%clk 0:04:57.8]} 3... h6 {[%clk 0:04:52.8]}
4. Bh4 {[%clk 0:04:57]} 4... g5 {[%clk 0:04:51.6]} 5. Bg3 {[%clk 0:04:56.4]}
5... Bg7 {[%clk 0:04:50.6]} 6. h4 {[%clk 0:04:55.6]} 6... d6 {[%clk 0:04:47.4]}
7. e3 {[%clk 0:04:54.7]} 7... Nbd7 {[%clk 0:04:46.3]} 8. hxg5 {[%clk 0:04:53.9]}
8... hxg5 {[%clk 0:04:45.1]} 9. Rxh8+ {[%clk 0:04:53.5]} 9... Bxh8 {[%clk
0:04:44.2]} 10. Nxg5 {[%clk 0:04:52.7]} 10... c5 {[%clk 0:04:41.3]} 11. d5
{[%clk 0:04:51.3]} 11... Bb7 {[%clk 0:04:39]} 12. Bb5 {[%clk 0:04:49.3]} 12...
a6 {[%clk 0:04:37.1]} 13. Bxd7+ {[%clk 0:04:48.2]} 13... Qxd7 {[%clk 0:04:36.2]}
14. Qf3 {[%clk 0:04:45.9]} 14... Bxd5 {[%clk 0:04:31.7]} 15. Qf4 {[%clk
0:04:45.3]} 15... O-O-O {[%clk 0:04:23.8]} 16. Nc3 {[%clk 0:04:42.7]} 16... e5
{[%clk 0:04:21.3]} 17. Qh4 {[%clk 0:04:38.7]} 17... Bxg2 {[%clk 0:04:15.4]} 18.
O-O-O {[%clk 0:04:36.7]} 18... Bc6 {[%clk 0:04:01.7]} 19. Qc4 {[%clk 0:04:35.3]}
19... Kb7 {[%clk 0:03:53.6]} 20. Nxf7 {[%clk 0:04:33.3]} 20... d5 {[%clk
0:03:51.4]} 21. Nxd8+ {[%clk 0:04:26.2]} 21... Qxd8 {[%clk 0:03:49.3]} 22. Qh4
{[%clk 0:04:20.8]} 22... d4 {[%clk 0:03:44.7]} 23. exd4 {[%clk 0:04:19.5]} 23...
exd4 {[%clk 0:03:39.8]} 24. Ne2 {[%clk 0:04:17.3]} 24... Bf3 {[%clk 0:03:37.3]}
25. Re1 {[%clk 0:04:15.3]} 25... Qe8 {[%clk 0:03:30.2]} 26. Qf4 {[%clk
0:03:52.1]} 26... Bc6 {[%clk 0:02:50.7]} 27. Qc7+ {[%clk 0:03:46.7]} 27... Ka8
{[%clk 0:02:49.8]} 28. Kd2 {[%clk 0:03:43.1]} 28... Nd5 {[%clk 0:02:47.7]} 29.
Qd6 {[%clk 0:03:27]} 29... c4 {[%clk 0:02:36.6]} 30. Nf4 {[%clk 0:03:19]} 30...
c3+ {[%clk 0:02:34.1]} 31. bxc3 {[%clk 0:03:17.9]} 31... dxc3+ {[%clk
0:02:30.6]} 32. Kd1 {[%clk 0:03:17]} 32... Qc8 {[%clk 0:02:09]} 33. Nxd5 {[%clk
0:03:10.1]} 33... Bxd5 {[%clk 0:02:04.7]} 34. Qxd5+ {[%clk 0:03:09.1]} 34... Ka7
{[%clk 0:02:03.4]} 35. Re7+ {[%clk 0:03:07.4]} 1-0

[Event "Live Chess"]
[Site "Chess.com"]
[Date "2024.06.02"]
[Round "-"]
[White "WilliamofOrange16th"]
[Black "uselessduffer"]
[Result "1-0"]
[WhiteElo "2000"]
[BlackElo "2373"]
[TimeControl "300"]
[EndTime "3:23:15 PDT"]
[Termination "WilliamofOrange16th won on time"]

1. e4 {[%clk 0:04:57.1]} 1... g6 {[%clk 0:04:56.2]} 2. d4 {[%clk 0:04:55.2]}
2... Bg7 {[%clk 0:04:55.6]} 3. Nc3 {[%clk 0:04:55.1]} 3... d6 {[%clk 0:04:54.5]}
4. Be2 {[%clk 0:04:54.7]} 4... a6 {[%clk 0:04:49.6]} 5. h4 {[%clk 0:04:50.4]}
5... h5 {[%clk 0:04:41.3]} 6. Nf3 {[%clk 0:04:46.8]} 6... b5 {[%clk 0:04:37.8]}
7. a4 {[%clk 0:04:44.7]} 7... b4 {[%clk 0:04:36.3]} 8. Nd5 {[%clk 0:04:44.1]}
8... a5 {[%clk 0:04:27.5]} 9. Ng5 {[%clk 0:04:41.5]} 9... e6 {[%clk 0:03:33.9]}
10. Nf4 {[%clk 0:04:36.1]} 10... Qe7 {[%clk 0:02:59.1]} 11. Be3 {[%clk
0:04:12.4]} 11... Nd7 {[%clk 0:02:45.9]} 12. Bc4 {[%clk 0:04:07.3]} 12... Ngf6
{[%clk 0:02:37.8]} 13. Nfxe6 {[%clk 0:03:40.4]} 13... fxe6 {[%clk 0:02:32.9]}
14. Nxe6 {[%clk 0:03:39.5]} 14... Nb6 {[%clk 0:02:21.6]} 15. Bb5+ {[%clk
0:03:22.3]} 15... Kf7 {[%clk 0:02:01.6]} 16. Ng5+ {[%clk 0:03:15.7]} 16... Kf8
{[%clk 0:01:52.5]} 17. Bc6 {[%clk 0:03:11.8]} 17... Rb8 {[%clk 0:01:44.1]} 18.
e5 {[%clk 0:03:02.6]} 18... Ng4 {[%clk 0:01:32.2]} 19. O-O {[%clk 0:02:56.8]}
19... Bf5 {[%clk 0:01:18]} 20. exd6 {[%clk 0:02:33.8]} 20... Qxd6 {[%clk
0:01:11.2]} 21. g3 {[%clk 0:02:30.8]} 21... Nxe3 {[%clk 0:01:08.5]} 22. fxe3
{[%clk 0:02:29.9]} 22... Qxg3+ {[%clk 0:01:07.5]} 23. Kh1 {[%clk 0:02:29.3]}
23... Bf6 {[%clk 0:01:00.7]} 24. Qe1 {[%clk 0:02:05.5]} 24... Qxe1 {[%clk
0:00:49.7]} 25. Raxe1 {[%clk 0:02:05.4]} 25... Kg7 {[%clk 0:00:40.9]} 26. e4
{[%clk 0:01:57.7]} 26... Bg4 {[%clk 0:00:40]} 27. e5 {[%clk 0:01:52.9]} 27...
Bxg5 {[%clk 0:00:39.2]} 28. hxg5 {[%clk 0:01:52.8]} 28... Rhf8 {[%clk
0:00:38.1]} 29. Rf6 {[%clk 0:01:51.2]} 29... Nd7 {[%clk 0:00:31.9]} 30. Bxd7
{[%clk 0:01:49.5]} 30... Bxd7 {[%clk 0:00:31.8]} 31. d5 {[%clk 0:01:38.6]} 31...
Rbe8 {[%clk 0:00:25]} 32. Rxf8 {[%clk 0:01:24]} 32... Rxf8 {[%clk 0:00:23.5]}
33. e6 {[%clk 0:01:22.2]} 33... Bc8 {[%clk 0:00:22.9]} 34. c4 {[%clk 0:01:16.8]}
34... bxc3 {[%clk 0:00:21.4]} 35. bxc3 {[%clk 0:01:16.1]} 35... Rd8 {[%clk
0:00:19.5]} 36. c4 {[%clk 0:01:10.6]} 36... Re8 {[%clk 0:00:17.9]} 37. c5 {[%clk
0:01:07.8]} 37... Re7 {[%clk 0:00:14.9]} 38. Kh2 {[%clk 0:01:05.2]} 38... Kf8
{[%clk 0:00:12.9]} 39. Rf1+ {[%clk 0:01:00]} 39... Ke8 {[%clk 0:00:12.1]} 40.
Rf6 {[%clk 0:00:59.1]} 40... c6 {[%clk 0:00:11.3]} 41. Rxg6 {[%clk 0:00:53.7]}
41... Kd8 {[%clk 0:00:10.6]} 42. Rg8+ {[%clk 0:00:33.3]} 42... Re8 {[%clk
0:00:08.8]} 43. e7+ {[%clk 0:00:19.2]} 43... Kxe7 {[%clk 0:00:07.6]} 44. d6+
{[%clk 0:00:18.4]} 44... Kd8 {[%clk 0:00:05.9]} 45. Rg7 {[%clk 0:00:16.8]} 45...
Be6 {[%clk 0:00:04.7]} 46. Ra7 {[%clk 0:00:14.3]} 46... Bd5 {[%clk 0:00:02.7]}
47. Rxa5 {[%clk 0:00:13.5]} 47... Re2+ {[%clk 0:00:00.9]} 48. Kh3 {[%clk
0:00:12.2]} 48... Re3+ {[%clk 0:00:00.8]} 49. Kh4 {[%clk 0:00:11.4]} 49... Kd7
{[%clk 0:00:00.3]} 50. Kxh5 {[%clk 0:00:10.4]} 1-0

[Event "Live Chess"]
[Site "Chess.com"]
[Date "2024.06.02"]
[Round "-"]
[White "TigerTank70"]
[Black "Cimon"]
[Result "0-1"]
[WhiteElo "2212"]
[BlackElo "1844"]
[TimeControl "300"]
[EndTime "3:23:27 PDT"]
[Termination "Cimon won by resignation"]

1. e4 {[%clk 0:04:42.5]} 1... d6 {[%clk 0:04:56.7]} 2. d4 {[%clk 0:04:41.5]}
2... Nf6 {[%clk 0:04:55.3]} 3. Nc3 {[%clk 0:04:41.2]} 3... g6 {[%clk 0:04:54.1]}
4. Be2 {[%clk 0:04:40.6]} 4... Bg7 {[%clk 0:04:52.7]} 5. Bg5 {[%clk 0:04:39.7]}
5... O-O {[%clk 0:04:50.5]} 6. Qd2 {[%clk 0:04:39.1]} 6... Re8 {[%clk
0:04:47.2]} 7. h4 {[%clk 0:04:38.4]} 7... h5 {[%clk 0:04:45.8]} 8. Bh6 {[%clk
0:04:37.1]} 8... Bh8 {[%clk 0:04:44.3]} 9. O-O-O {[%clk 0:04:31.4]} 9... Nc6
{[%clk 0:04:22.1]} 10. Nh3 {[%clk 0:04:22]} 10... e5 {[%clk 0:04:19.2]} 11. Bg5
{[%clk 0:04:15.6]} 11... Qd7 {[%clk 0:03:59.7]} 12. d5 {[%clk 0:04:08.2]} 12...
Nd4 {[%clk 0:03:56.3]} 13. f4 {[%clk 0:03:59.9]} 13... Ng4 {[%clk 0:03:45.2]}
14. fxe5 {[%clk 0:03:44]} 14... dxe5 {[%clk 0:03:38.8]} 15. Rdf1 {[%clk
0:03:33.7]} 15... b5 {[%clk 0:03:24.3]} 16. Nf2 {[%clk 0:03:15.7]} 16... Nxe2+
{[%clk 0:03:04.9]} 17. Nxe2 {[%clk 0:03:05.6]} 17... a5 {[%clk 0:02:39.6]} 18.
Nxg4 {[%clk 0:02:53.7]} 18... Qxg4 {[%clk 0:02:38.1]} 19. Rf3 {[%clk 0:02:50.7]}
19... Qxe4 {[%clk 0:02:30.3]} 20. Rhf1 {[%clk 0:02:40.3]} 20... f5 {[%clk
0:02:28.1]} 21. Nc3 {[%clk 0:02:20.4]} 21... Qc4 {[%clk 0:02:15]} 22. d6 {[%clk
0:01:59.5]} 22... cxd6 {[%clk 0:02:08.3]} 23. Qxd6 {[%clk 0:01:58.2]} 23... Be6
{[%clk 0:02:02.3]} 24. Rd3 {[%clk 0:01:39.7]} 24... e4 {[%clk 0:01:57.1]} 25.
Rd2 {[%clk 0:01:32.7]} 25... Qxf1+ {[%clk 0:01:54.9]} 26. Nd1 {[%clk 0:01:29.8]}
26... Qc4 {[%clk 0:01:46.4]} 27. Kb1 {[%clk 0:01:21.2]} 27... Rac8 {[%clk
0:01:41.5]} 28. Ne3 {[%clk 0:01:16.2]} 28... Qb4 {[%clk 0:01:33.4]} 29. Qxb4
{[%clk 0:00:57]} 29... axb4 {[%clk 0:01:32.2]} 30. Rd6 {[%clk 0:00:55.6]} 30...
Be5 {[%clk 0:01:25.7]} 31. Rb6 {[%clk 0:00:50.6]} 31... Rb8 {[%clk 0:01:22.6]}
32. Ra6 {[%clk 0:00:49.5]} 32... Rb7 {[%clk 0:01:07.8]} 33. Kc1 {[%clk 0:00:41]}
33... f4 {[%clk 0:01:06.1]} 34. Nf1 {[%clk 0:00:36.6]} 34... Kf7 {[%clk
0:01:01.3]} 35. Nd2 {[%clk 0:00:34.7]} 35... Bd5 {[%clk 0:00:48.2]} 0-1

[Event "Live Chess"]
[Site "Chess.com"]
[Date "2024.06.02"]
[Round "-"]
[White "bill77678"]
[Black "CarmelJane"]
[Result "0-1"]
[WhiteElo "1836"]
[BlackElo "2075"]
[TimeControl "300"]
[EndTime "3:23:35 PDT"]
[Termination "CarmelJane won on time"]

1. e4 {[%clk 0:04:57.8]} 1... g6 {[%clk 0:04:59]} 2. d4 {[%clk 0:04:56.8]} 2...
Bg7 {[%clk 0:04:58.2]} 3. Nf3 {[%clk 0:04:55.4]} 3... c5 {[%clk 0:04:57.4]} 4.
Be3 {[%clk 0:04:53.1]} 4... cxd4 {[%clk 0:04:54]} 5. Bxd4 {[%clk 0:04:51.7]}
5... Nf6 {[%clk 0:04:47.4]} 6. Bd3 {[%clk 0:04:48.6]} 6... Nc6 {[%clk
0:04:46.4]} 7. Bc3 {[%clk 0:04:47]} 7... d6 {[%clk 0:04:44.4]} 8. h3 {[%clk
0:04:44.4]} 8... O-O {[%clk 0:04:41.6]} 9. Nbd2 {[%clk 0:04:42.7]} 9... a6
{[%clk 0:04:40.8]} 10. O-O {[%clk 0:04:41.4]} 10... b5 {[%clk 0:04:40]} 11. a3
{[%clk 0:04:38.1]} 11... Bb7 {[%clk 0:04:38.5]} 12. b4 {[%clk 0:04:33.3]} 12...
e6 {[%clk 0:04:37.4]} 13. Nb3 {[%clk 0:04:31.8]} 13... Rc8 {[%clk 0:04:32]} 14.
Bb2 {[%clk 0:04:27.9]} 14... e5 {[%clk 0:04:08.1]} 15. Qe2 {[%clk 0:04:10.1]}
15... Nh5 {[%clk 0:03:56.3]} 16. g3 {[%clk 0:04:05.2]} 16... Ne7 {[%clk
0:03:44.8]} 17. Rfd1 {[%clk 0:03:57.3]} 17... Qb6 {[%clk 0:03:42]} 18. Kg2
{[%clk 0:03:52.3]} 18... f5 {[%clk 0:03:35.8]} 19. Na5 {[%clk 0:03:34.8]} 19...
fxe4 {[%clk 0:02:42.8]} 20. Bxe4 {[%clk 0:03:29.2]} 20... Bxe4 {[%clk
0:02:42.2]} 21. Qxe4 {[%clk 0:03:27]} 21... d5 {[%clk 0:02:24.6]} 22. Qe2 {[%clk
0:03:23.8]} 22... e4 {[%clk 0:02:20.2]} 23. Nd4 {[%clk 0:03:21.4]} 23... Qd6
{[%clk 0:02:07.4]} 24. Nb7 {[%clk 0:03:11.3]} 24... Qc7 {[%clk 0:01:47.8]} 25.
Nc5 {[%clk 0:03:09.6]} 25... Bxd4 {[%clk 0:01:19]} 26. Bxd4 {[%clk 0:03:07.6]}
26... Nf5 {[%clk 0:01:18.6]} 27. Ne6 {[%clk 0:02:57.8]} 27... Nxd4 {[%clk
0:00:57.4]} 28. Rxd4 {[%clk 0:02:49]} 28... Qc3 {[%clk 0:00:55.9]} 29. Nxf8
{[%clk 0:02:19.1]} 29... Qxd4 {[%clk 0:00:46.7]} 30. Rd1 {[%clk 0:02:17.1]}
30... Qg7 {[%clk 0:00:30.7]} 31. Ne6 {[%clk 0:02:14.3]} 31... Qf6 {[%clk
0:00:29.9]} 32. Nd4 {[%clk 0:02:04.5]} 32... Qg5 {[%clk 0:00:27.4]} 33. Kh2
{[%clk 0:01:48.4]} 33... Rc3 {[%clk 0:00:26]} 34. h4 {[%clk 0:01:38.6]} 34...
Qf6 {[%clk 0:00:23]} 35. Rd2 {[%clk 0:01:23.6]} 35... Qe5 {[%clk 0:00:20.4]} 36.
Kg2 {[%clk 0:00:54.2]} 36... Nxg3 {[%clk 0:00:18.6]} 37. fxg3 {[%clk 0:00:48.2]}
37... Rxg3+ {[%clk 0:00:17.6]} 38. Kf1 {[%clk 0:00:43.7]} 38... Qf4+ {[%clk
0:00:15.9]} 39. Qf2 {[%clk 0:00:40.8]} 39... Qg4 {[%clk 0:00:09.3]} 40. Re2
{[%clk 0:00:16.6]} 40... Qh3+ {[%clk 0:00:06.6]} 41. Ke1 {[%clk 0:00:13.5]}
41... Qh1+ {[%clk 0:00:06.2]} 42. Kd2 {[%clk 0:00:12.4]} 42... Rg1 {[%clk
0:00:04.3]} 43. Ne6 {[%clk 0:00:07.9]} 43... Rd1+ {[%clk 0:00:03.7]} 44. Kc3
{[%clk 0:00:06.9]} 44... Qh3+ {[%clk 0:00:01.9]} 45. Kb2 {[%clk 0:00:05.2]}
45... Qxe6 {[%clk 0:00:01.8]} 46. Rd2 {[%clk 0:00:01.4]} 46... d4 {[%clk
0:00:01.7]} 47. Qxd4 {[%clk 0:00:00.4]} 47... e3 {[%clk 0:00:01.6]} 0-1